bitfinex/quotes_SOLUSD_20251119
["timestamp","ask_amount","ask_price","bid_price","bid_amount"]
[1763554279084,1.72,138.79,138.77,0.7]
[1763554279407,1.72,138.8,138.77,0.7]
[1763554279913,1.72,138.8,138.77,9.9776669]
[1763554280083,18.12096,138.82,138.78,9.2776669]
[1763554280290,1.72,138.81,138.78,9.9876669]
[1763554280481,1.72,138.81,138.79,0.71]
[1763554280806,19.84096,138.82,138.79,0.71]
[1763554281178,18.12096,138.82,138.79,0.71]
[1763554281398,9.2776669,138.85,138.8,9.2776669]
[1763554281589,1.72,138.84,138.81,0.71]
[1763554281996,29.1186269,138.84,138.81,0.71]
[1763554282890,19.84096,138.84,138.81,0.71]
[1763554284318,29.1186269,138.84,138.81,0.71]
[1763554285688,29.1186269,138.84,138.79,0.69]
[1763554285689,9.2776669,138.83,138.79,0.69]
[1763554285883,9.2776669,138.83,138.8,0.69]
[1763554286082,29.1186269,138.84,138.8,0.69]
[1763554286280,9.2776669,138.83,138.8,0.69]
[1763554286803,9.2776669,138.83,138.78,0.69]
[1763554286804,27.3986269,138.81,138.78,0.69]
[1763554286984,1.72,138.8,138.74,0.1]
[1763554287185,9.2776669,138.79,138.75,0.69]
[1763554287513,1.72,138.8,138.77,9.2776669]
[1763554287809,1.72,138.8,138.78,0.69]
[1763554289010,18.12096,138.81,138.79,9.2776669]
[1763554289387,1.72,138.82,138.8,9.9676669]
[1763554289609,18.12096,138.82,138.8,9.9676669]
[1763554289922,1.72,138.83,138.81,0.69]
[1763554290983,0.71,138.91,138.81,0.69]
[1763554291322,9.2776669,138.89,138.85,9.2776669]
[1763554291494,9.2776669,138.89,138.84,9.2776669]
[1763554291810,19.84096,138.88,138.84,9.2776669]
[1763554292016,19.84096,138.88,138.85,0.69]
[1763554292620,18.12096,138.87,138.85,9.9676669]
[1763554292990,18.12096,138.87,138.86,0.69]
[1763554293796,18.12096,138.87,138.86,9.9676669]
[1763554294111,9.2776669,138.92,138.86,9.9676669]
[1763554294317,18.12096,138.89,138.87,9.9676669]
[1763554294502,1.72,138.91,138.88,9.2776669]
[1763554294694,1.72,138.91,138.89,0.69]
[1763554295094,18.12096,138.9,138.89,0.69]
[1763554295305,1.72,138.91,138.89,0.69]
[1763554295720,11.7076669,138.91,138.83,1.72]
[1763554295892,11.7076669,138.91,138.8,27.90978769]
[1763554295893,10.9976669,138.91,138.8,27.90978769]
[1763554296104,11.7076669,138.91,138.86,9.2776669]
[1763554296434,10.9976669,138.91,138.86,9.2776669]
[1763554296735,10.9976669,138.91,138.81,2.41]
[1763554296736,1.72,138.91,138.87,9.9676669]
[1763554296894,10.9976669,138.91,138.87,0.69]
[1763554297094,11.7076669,138.91,138.87,0.69]
[1763554297617,1.72,138.91,138.87,9.9676669]
[1763554298118,1.72,138.91,138.88,0.69]
[1763554300004,2.43,138.91,138.87,9.2776669]
[1763554300211,1.72,138.91,138.87,9.2776669]
[1763554300398,1.72,138.91,138.88,0.69]
[1763554300602,10.9976669,138.91,138.87,0.69]
[1763554301113,10.9976669,138.91,138.86,9.2776669]
[1763554301114,11.7076669,138.91,138.86,9.2776669]
[1763554301532,11.7076669,138.91,138.87,0.69]
[1763554302401,9.9876669,138.9,138.85,9.9676669]
[1763554302726,9.2776669,138.89,138.84,9.2776669]
[1763554303099,10.9976669,138.91,138.85,0.69]
[1763554303302,10.9976669,138.91,138.87,9.2776669]
[1763554303622,9.2776669,138.9,138.85,9.9676669]
[1763554304223,9.2776669,138.9,138.85,0.69]
[1763554304224,9.9876669,138.89,138.85,0.69]
[1763554304427,0.71,138.9,138.86,0.69]
[1763554304724,9.9876669,138.9,138.86,0.69]
[1763554304921,11.05141991,138.9,138.86,0.69]
[1763554305130,5.54572508,138.9,138.86,0.69]
[1763554305636,10.34461922,138.9,138.86,0.69]
[1763554307199,6.25572508,138.89,138.84,5.54572508]
[1763554307405,18.12096,138.88,138.82,0.69]
[1763554307924,18.12096,138.89,138.82,0.69]
[1763554308224,5.54572508,138.89,138.82,0.69]
[1763554309212,5.54572508,138.88,138.82,0.69]
[1763554309643,18.12096,138.9,138.82,0.69]
[1763554309931,5.54572508,138.9,138.82,0.69]
[1763554310102,5.54572508,138.87,138.82,6.23572508]
[1763554310304,5.54572508,138.87,138.83,0.65]
[1763554310509,1.72,138.88,138.83,6.19572508]
[1763554310705,7.26572508,138.88,138.83,6.19572508]
[1763554310933,7.26572508,138.88,138.84,0.65]
[1763554311432,1.72,138.88,138.84,0.65]
[1763554311607,5.54572508,138.87,138.84,0.65]
[1763554311930,7.26572508,138.88,138.84,0.65]
[1763554312531,1.72,138.88,138.84,0.65]
[1763554312738,5.54572508,138.87,138.84,0.65]
[1763554314835,1.72,138.88,138.84,0.65]
[1763554314836,3.85012861,138.88,138.84,0.65]
[1763554315035,4.54012861,138.88,138.84,0.65]
[1763554316220,2.13012861,138.87,138.84,0.65]
[1763554316730,2.13012861,138.87,138.82,0.65]
[1763554316731,0.69,138.86,138.82,0.65]
[1763554316941,2.82012861,138.86,138.82,0.65]
[1763554317119,2.13012861,138.85,138.82,0.65]
[1763554319842,2.13012861,138.86,138.82,0.65]
[1763554320416,2.82012861,138.86,138.82,0.65]
[1763554321040,2.13012861,138.86,138.82,0.65]
[1763554321445,10.47882769,138.89,138.82,2.78012861]
[1763554321618,2.13012861,138.88,138.83,0.65]
[1763554322341,21.97108861,138.89,138.83,2.78012861]
[1763554322547,21.97108861,138.89,138.84,2.13012861]
[1763554322729,21.97108861,138.89,138.84,2.78012861]
[1763554322928,1.72,138.89,138.85,0.65]
[1763554323128,20.25108861,138.9,138.85,2.78012861]
[1763554323549,20.25108861,138.9,138.86,0.65]
[1763554324947,18.12096,138.9,138.86,0.65]
[1763554325248,20.25108861,138.9,138.86,0.65]
[1763554325446,2.13012861,138.91,138.86,0.65]
[1763554325642,18.12096,138.9,138.86,0.65]
[1763554325846,2.13012861,138.91,138.86,0.65]
[1763554326226,6.93033591,138.91,138.86,0.65]
[1763554327147,4.8002073,138.91,138.86,2.78012861]
[1763554327337,2.13012861,138.92,138.87,2.13012861]
[1763554327536,16.30903499,138.93,138.88,2.13012861]
[1763554327537,3.85012861,138.93,138.88,2.13012861]
[1763554327742,1.72,138.93,138.89,2.78012861]
[1763554328127,1.72,138.93,138.9,0.65]
[1763554328550,3.85012861,138.93,138.9,0.65]
[1763554328929,1.72,138.93,138.9,0.65]
[1763554329133,2.13012861,138.92,138.9,0.65]
[1763554329442,2.13012861,138.92,138.88,0.65]
[1763554329657,2.41,138.93,138.88,0.65]
[1763554329951,3.85012861,138.93,138.88,2.78012861]
[1763554330342,3.85012861,138.93,138.89,0.65]
[1763554331035,2.13012861,138.92,138.89,0.65]
[1763554331732,2.13012861,138.92,138.88,0.65]
[1763554331733,20.25108861,138.91,138.88,0.65]
[1763554332055,18.12096,138.91,138.88,0.65]
[1763554333231,1.72,138.93,138.88,2.78012861]
[1763554333232,3.85012861,138.93,138.88,2.78012861]
[1763554333627,3.85012861,138.93,138.89,0.65]
[1763554333853,1.72,138.93,138.89,2.78012861]
[1763554334234,1.72,138.93,138.89,0.65]
[1763554334235,4.54012861,138.93,138.89,0.65]
[1763554335240,1.72,138.93,138.89,2.78012861]
[1763554335858,1.72,138.93,138.9,0.65]
[1763554336355,0.69,138.93,138.9,0.65]
[1763554336738,2.13012861,138.94,138.9,0.65]
[1763554337052,2.82012861,138.94,138.9,0.65]
[1763554337263,0.69,138.93,138.9,0.65]
[1763554337561,2.82012861,138.94,138.9,0.65]
[1763554337760,3.85012861,138.95,138.9,2.78012861]
[1763554337938,3.85012861,138.95,138.91,0.65]
[1763554338135,4.54012861,138.95,138.91,0.65]
[1763554338931,2.82012861,138.95,138.91,0.65]
[1763554339168,4.54012861,138.95,138.91,0.65]
[1763554339773,4.54012861,138.95,138.84,1.72]
[1763554339774,2.13012861,138.92,138.88,0.72]
[1763554340062,2.13012861,138.92,138.87,2.13012861]
[1763554340440,2.84012861,138.92,138.88,0.72]
[1763554340641,2.13012861,138.92,138.88,0.72]
[1763554340859,20.25108861,138.93,138.88,2.85012861]
[1763554341164,20.96108861,138.93,138.88,2.85012861]
[1763554341347,20.96108861,138.93,138.89,0.72]
[1763554342136,1.72,138.95,138.9,2.13012861]
[1763554342349,2.13012861,138.95,138.91,0.72]
[1763554342552,3.85012861,138.95,138.91,0.72]
[1763554343355,13.6389563,138.97,138.92,2.13012861]
[1763554343549,0.81,138.98,138.92,2.13012861]
[1763554343769,2.13012861,138.97,138.93,0.72]
[1763554344175,2.84012861,138.97,138.93,0.72]
[1763554344467,2.13012861,138.96,138.93,0.72]
[1763554344651,2.13012861,138.97,138.93,0.72]
[1763554345663,3.95012861,138.98,138.93,2.85012861]
[1763554345871,2.53,138.98,138.94,2.13012861]
[1763554346177,2.53,138.98,138.94,2.80012861]
[1763554346471,2.53,138.98,138.95,0.67]
[1763554346656,2.53,138.98,138.94,0.67]
[1763554346657,4.66012861,138.98,138.94,0.67]
[1763554347366,4.66012861,138.98,138.93,2.13012861]
[1763554347367,3.95012861,138.98,138.93,2.13012861]
[1763554347573,2.84012861,138.97,138.92,2.80012861]
[1763554347961,2.84012861,138.96,138.91,2.13012861]
[1763554348272,2.84012861,138.96,138.92,2.80012861]
[1763554348458,2.13012861,138.97,138.92,2.80012861]
[1763554348657,2.84012861,138.97,138.93,0.67]
[1763554350250,0.71,138.96,138.88,18.12096]
[1763554350572,0.71,138.96,138.93,0.67]
[1763554351674,4.66012861,138.98,138.93,2.80012861]
[1763554351847,0.71,138.97,138.93,2.80012861]
[1763554352247,0.71,138.97,138.93,2.13012861]
[1763554352544,0.71,138.97,138.94,0.67]
[1763554352771,1.82,138.98,138.94,2.80012861]
[1763554353067,19.94096,138.98,138.94,2.80012861]
[1763554353273,19.94096,138.98,138.95,0.67]
[1763554353970,19.94096,138.98,138.95,2.80012861]
[1763554354561,19.94096,138.98,138.95,2.13012861]
[1763554355076,19.94096,138.98,138.95,2.80012861]
[1763554355270,19.94096,138.98,138.95,2.13012861]
[1763554355271,20.65096,138.98,138.95,2.13012861]
[1763554355473,20.65096,138.98,138.94,2.80012861]
[1763554356278,20.65096,138.98,138.95,0.67]
[1763554356661,19.94096,138.98,138.95,0.67]
[1763554357178,20.65096,138.98,138.95,0.67]
[1763554357353,19.94096,138.98,138.95,0.67]
[1763554357554,18.22096,138.98,138.95,2.80012861]
[1763554358360,18.22096,138.98,138.95,0.67]
[1763554359482,18.22096,138.98,138.95,2.80012861]
[1763554360563,18.22096,138.98,138.96,0.67]
[1763554360763,0.1,138.98,138.96,2.80012861]
[1763554361075,0.1,138.98,138.97,2.13012861]
[1763554361264,0.1,138.98,138.97,2.80012861]
[1763554361459,0.1,138.98,138.96,2.13012861]
[1763554361659,0.1,138.98,138.95,2.13012861]
[1763554361858,0.1,138.98,138.96,0.67]
[1763554362082,0.1,138.98,138.96,2.80012861]
[1763554362578,0.1,138.98,138.97,0.67]
[1763554363677,0.1,138.98,138.97,2.80012861]
[1763554364785,0.1,138.98,138.94,3.32286902]
[1763554364987,0.1,138.98,138.95,0.67]
[1763554366664,4.13286902,138.98,138.95,0.67]
[1763554366979,5.83286902,138.98,138.95,0.67]
[1763554368259,3.32286902,138.96,138.95,0.67]
[1763554368891,3.32286902,138.97,138.95,0.67]
[1763554370178,1.8,138.98,138.95,0.67]
[1763554370179,5.12286902,138.98,138.95,0.67]
[1763554371387,3.32286902,138.97,138.95,0.71]
[1763554372394,3.42286902,138.98,138.95,0.71]
[1763554372584,1.8,138.98,138.95,0.71]
[1763554375396,3.42286902,138.98,138.95,0.71]
[1763554376198,3.32286902,138.97,138.95,0.71]
[1763554377591,3.32286902,138.97,138.91,5.02286902]
[1763554377792,3.32286902,138.97,138.94,0.71]
[1763554377992,5.78286902,138.98,138.94,0.71]
[1763554378194,3.32286902,138.97,138.94,0.71]
[1763554378489,1.7,138.96,138.94,0.71]
[1763554381507,3.98286902,138.95,138.9,0.71]
[1763554381683,3.32286902,138.94,138.9,0.71]
[1763554382101,1.7,138.93,138.9,0.71]
[1763554382287,5.02286902,138.93,138.9,0.71]
[1763554383718,1.7,138.93,138.9,0.71]
[1763554385492,1.7,138.94,138.9,4.03286902]
[1763554385907,1.7,138.94,138.91,0.71]
[1763554386816,5.02286902,138.94,138.91,0.71]
[1763554387205,3.32286902,138.94,138.91,0.71]
[1763554387398,1.7,138.94,138.91,0.71]
[1763554387598,8.34573804,138.95,138.91,0.71]
[1763554390426,6.64573804,138.95,138.91,0.71]
[1763554390721,8.34573804,138.95,138.91,0.71]
[1763554391230,5.02286902,138.95,138.91,0.71]
[1763554391532,1.7,138.96,138.92,3.32286902]
[1763554391734,1.7,138.96,138.93,0.71]
[1763554391932,18.22096,138.98,138.93,4.03286902]
[1763554392265,1.7,138.97,138.93,4.03286902]
[1763554392413,1.7,138.97,138.94,0.71]
[1763554393516,1.7,138.97,138.94,4.03286902]
[1763554393720,1.7,138.97,138.94,0.71]
[1763554394517,5.78286902,138.98,138.94,0.71]
[1763554395838,23.90382902,138.98,138.94,0.71]
[1763554396214,5.78286902,138.98,138.94,0.71]
[1763554396831,2.46,138.98,138.94,0.71]
[1763554397131,23.90382902,138.98,138.94,0.71]
[1763554398515,20.58096,138.98,138.94,0.71]
[1763554398719,23.90382902,138.98,138.94,0.71]
[1763554399755,4.02286902,138.97,138.92,4.04286902]
[1763554399917,4.02286902,138.97,138.93,0.72]
[1763554400315,19.92096,138.98,138.91,3.32286902]
[1763554400316,4.02286902,138.96,138.91,3.32286902]
[1763554400631,3.32286902,138.94,138.91,0.72]
[1763554400830,19.92096,138.95,138.86,1.7]
[1763554400831,3.32286902,138.93,138.89,4.04286902]
[1763554401052,3.32286902,138.93,138.9,0.72]
[1763554401216,4.02286902,138.93,138.89,0.72]
[1763554401729,7.34573804,138.93,138.89,0.72]
[1763554403036,4.02286902,138.93,138.89,4.04286902]
[1763554403412,4.02286902,138.93,138.9,0.72]
[1763554403838,3.32286902,138.93,138.9,0.72]
[1763554404339,6.64573804,138.94,138.9,0.72]
[1763554404545,4.01286902,138.94,138.9,0.72]
[1763554404710,7.33573804,138.94,138.9,0.72]
[1763554406539,4.01286902,138.94,138.9,0.72]
[1763554406753,6.64573804,138.93,138.9,0.72]
[1763554406913,7.33573804,138.93,138.9,0.72]
[1763554408316,7.33573804,138.93,138.88,3.32286902]
[1763554408519,3.32286902,138.91,138.88,0.72]
[1763554414332,5.02286902,138.92,138.88,4.04286902]
[1763554414945,5.02286902,138.92,138.89,0.72]
[1763554415326,5.71286902,138.92,138.89,0.72]
[1763554415626,8.34573804,138.92,138.89,0.72]
[1763554416322,5.02286902,138.92,138.89,0.72]
[1763554416844,3.32286902,138.92,138.89,0.72]
[1763554417031,5.02286902,138.92,138.89,0.72]
[1763554417644,1.7,138.92,138.89,0.72]
[1763554418444,27.15669804,138.93,138.89,0.72]
[1763554420654,3.32286902,138.92,138.89,0.72]
[1763554420845,3.32286902,138.92,138.87,0.72]
[1763554420846,3.32286902,138.91,138.87,0.72]
[1763554421023,4.01286902,138.91,138.87,0.72]
[1763554421419,3.32286902,138.9,138.87,0.72]
[1763554422025,4.01286902,138.9,138.87,0.72]
[1763554422226,5.71286902,138.9,138.87,0.72]
[1763554422422,3.32286902,138.89,138.86,0.72]
[1763554422628,3.32286902,138.89,138.87,0.72]
[1763554422843,1.7,138.88,138.87,0.72]
[1763554423234,3.32286902,138.89,138.87,0.72]
[1763554423430,3.32286902,138.89,138.86,0.72]
[1763554423839,1.7,138.9,138.86,0.72]
[1763554424036,5.02286902,138.9,138.86,0.72]
[1763554426843,4.51930049,138.9,138.86,0.72]
[1763554427852,3.82930049,138.9,138.86,0.72]
[1763554428555,4.51930049,138.9,138.86,0.72]
[1763554428962,4.51930049,138.9,138.86,2.84930049]
[1763554428963,2.12930049,138.9,138.86,2.84930049]
[1763554429146,2.12930049,138.9,138.87,2.12930049]
[1763554429147,1.7,138.9,138.87,2.12930049]
[1763554429354,1.7,138.9,138.87,2.84930049]
[1763554429547,1.7,138.9,138.88,0.67]
[1763554430457,2.12930049,138.92,138.88,0.67]
[1763554430458,3.82930049,138.92,138.88,0.67]
[1763554431261,4.52930049,138.92,138.88,0.67]
[1763554433454,18.12096,138.93,138.88,0.67]
[1763554433455,0.1,138.98,138.91,2.12930049]
[1763554433660,0.1,138.98,138.94,2.12930049]
[1763554434260,0.8,138.98,138.94,2.79930049]
[1763554435641,0.8,138.98,138.95,0.67]
[1763554435956,0.8,138.98,138.94,2.79930049]
[1763554436863,0.8,138.98,138.95,0.67]
[1763554438850,4.62930049,138.98,138.93,2.12930049]
[1763554439050,4.62930049,138.98,138.93,2.79930049]
[1763554439361,0.7,138.97,138.94,0.67]
[1763554439863,4.62930049,138.98,138.94,0.67]
[1763554440166,2.12930049,138.97,138.92,8.64446181]
[1763554440463,2.12930049,138.96,138.92,2.12930049]
[1763554440680,2.82930049,138.96,138.92,2.79930049]
[1763554440847,0.7,138.95,138.92,2.79930049]
[1763554441038,0.7,138.95,138.9,2.12930049]
[1763554441039,2.12930049,138.94,138.9,2.12930049]
[1763554441245,2.12930049,138.94,138.91,0.67]
[1763554442298,2.12930049,138.95,138.91,2.79930049]
[1763554442645,2.12930049,138.95,138.92,0.67]
[1763554442875,8.74277678,138.97,138.93,2.12930049]
[1763554443162,2.82930049,138.97,138.94,0.67]
[1763554443466,2.12930049,138.97,138.94,0.67]
[1763554446577,3.92930049,138.98,138.94,0.67]
[1763554446785,0.1,138.98,138.95,2.12930049]
[1763554447079,0.1,138.98,138.96,0.67]
[1763554447369,2.22930049,138.98,138.95,0.67]
[1763554450297,2.22930049,138.98,138.93,2.12930049]
[1763554450298,2.82930049,138.97,138.93,0.67]
[1763554450489,2.82930049,138.97,138.92,2.88527428]
[1763554450490,2.82930049,138.97,138.94,0.67]
[1763554450801,2.12930049,138.97,138.94,0.67]
[1763554451677,2.82930049,138.96,138.92,0.67]
[1763554451996,2.12930049,138.95,138.92,0.67]
[1763554453320,0.7,138.96,138.92,0.67]
[1763554453607,2.82930049,138.96,138.92,0.67]
[1763554454310,2.12930049,138.96,138.92,0.67]
[1763554454596,1.7,138.97,138.93,2.12930049]
[1763554454994,1.7,138.97,138.94,0.67]
[1763554455194,3.82930049,138.97,138.94,0.67]
[1763554455392,2.12930049,138.97,138.94,0.67]
[1763554455781,2.82930049,138.97,138.94,0.67]
[1763554457401,0.1,138.98,138.94,2.79930049]
[1763554457784,0.1,138.98,138.95,0.67]
[1763554460505,2.22930049,138.98,138.95,0.67]
[1763554460708,2.93930049,138.98,138.95,0.67]
[1763554461018,2.12930049,138.97,138.93,18.84096]
[1763554461177,2.12930049,138.97,138.94,0.72]
[1763554461380,2.83930049,138.97,138.94,0.72]
[1763554461601,2.12930049,138.97,138.94,0.72]
[1763554462604,2.83930049,138.97,138.93,0.72]
[1763554467383,2.12930049,138.97,138.93,0.72]
[1763554467588,2.22930049,138.98,138.93,2.84930049]
[1763554467988,0.1,138.98,138.94,0.68]
[1763554468387,0.1,138.98,138.95,2.12930049]
[1763554468903,0.1,138.98,138.96,0.68]
[1763554484599,0.1,138.98,138.96,2.80930049]
[1763554485120,0.1,138.98,138.97,0.68]
[1763554493108,0.1,138.98,138.97,4.00188121]
[1763554495721,0.1,138.98,138.97,3.32188121]
[1763554496231,0.1,138.98,138.96,0.7]
[1763554496933,0.1,138.98,138.95,5.72188121]
[1763554497630,0.1,138.98,138.95,0.7]
[1763554497832,0.79,138.98,138.94,5.72188121]
[1763554498033,4.11188121,138.98,138.95,0.7]
[1763554498619,3.42188121,138.98,138.95,0.7]
[1763554499639,0.1,138.98,138.95,0.7]
[1763554499815,0.1,138.98,138.95,4.02188121]
[1763554500018,0.1,138.98,138.95,0.7]
[1763554501444,3.32188121,138.96,138.9,0.7]
[1763554501656,3.32188121,138.93,138.9,0.7]
[1763554501820,3.32188121,138.93,138.9,18.82096]
[1763554502021,0.69,138.95,138.9,18.82096]
[1763554502022,3.32188121,138.94,138.9,18.82096]
[1763554502323,4.01188121,138.94,138.91,0.7]
[1763554503154,3.32188121,138.94,138.91,0.7]
[1763554503349,4.83680898,138.97,138.93,3.32188121]
[1763554503530,3.42188121,138.98,138.93,3.32188121]
[1763554503848,3.42188121,138.98,138.94,0.7]
[1763554504051,0.69,138.97,138.94,0.7]
[1763554504347,4.01188121,138.97,138.94,0.7]
[1763554505418,3.32188121,138.97,138.94,0.7]
[1763554505655,3.32188121,138.97,138.93,0.7]
[1763554505856,0.69,138.96,138.93,0.7]
[1763554507060,0.1,138.98,138.93,0.7]
[1763554507061,0.1,138.98,138.94,3.32188121]
[1763554507240,4.11188121,138.98,138.94,3.32188121]
[1763554507424,4.11188121,138.98,138.95,0.7]
[1763554507930,0.1,138.98,138.95,0.7]
[1763554508245,0.79,138.98,138.95,0.7]
[1763554510847,4.11188121,138.98,138.95,0.7]
[1763554511749,4.11188121,138.98,138.94,3.32188121]
[1763554511750,4.11188121,138.98,138.94,18.12096]
[1763554511950,0.69,138.97,138.94,18.82096]
[1763554513045,4.01188121,138.97,138.94,18.12096]
[1763554513233,3.32188121,138.96,138.94,18.12096]
[1763554513556,3.32188121,138.96,138.93,0.7]
[1763554513557,4.01188121,138.96,138.93,0.7]
[1763554514133,0.69,138.96,138.93,0.7]
[1763554515067,4.01188121,138.97,138.93,4.02188121]
[1763554515260,3.42188121,138.98,138.94,3.32188121]
[1763554515439,3.42188121,138.98,138.94,4.02188121]
[1763554515645,3.42188121,138.98,138.95,0.7]
[1763554515843,0.1,138.98,138.95,0.7]
[1763554516355,0.79,138.98,138.95,0.7]
[1763554518149,4.11188121,138.98,138.94,0.7]
[1763554518347,3.32188121,138.97,138.94,0.7]
[1763554519557,4.11188121,138.98,138.94,0.7]
[1763554521463,0.1,138.98,138.94,4.02188121]
[1763554521646,0.1,138.98,138.97,3.32188121]
[1763554521849,0.1,138.98,138.97,22.10284121]
[1763554523773,0.1,138.98,138.97,3.98188121]
[1763554523982,0.1,138.98,138.97,22.10284121]
[1763554524171,0.1,138.98,138.97,26.12472242]
[1763554525355,0.1,138.98,138.97,35.91355011]
[1763554525556,0.1,139.05,138.98,9.78882769]
[1763554525795,0.1,139.05,139.04,3.32188121]
[1763554525952,0.1,139.05,139.04,4.00188121]
[1763554526154,0.1,139.05,139.04,22.12284121]
[1763554531661,4.10188121,139.05,138.99,0.68]
[1763554531875,4.00188121,139.04,138.99,4.00188121]
[1763554532188,4.00188121,139.04,139.0,18.12096]
[1763554532389,4.00188121,139.03,139.0,18.12096]
[1763554532588,3.32188121,139.02,139.0,18.12096]
[1763554532773,4.00188121,139.02,139.0,18.12096]
[1763554533286,3.32188121,139.02,139.0,18.12096]
[1763554533591,4.00188121,139.03,139.0,18.12096]
[1763554533777,4.00188121,139.03,139.0,18.80096]
[1763554534586,0.78,139.05,139.01,0.68]
[1763554534763,3.32188121,139.04,139.01,0.68]
[1763554535164,4.00188121,139.04,139.0,22.12284121]
[1763554535587,4.00188121,139.04,139.0,0.68]
[1763554535766,3.32188121,139.03,139.0,0.68]
[1763554536103,3.32188121,139.03,138.97,22.12284121]
[1763554536104,3.32188121,139.02,138.98,0.68]
[1763554536392,4.00188121,139.01,138.97,19.82096]
[1763554536574,4.00188121,139.01,138.97,20.50096]
[1763554536886,4.00188121,139.0,138.97,0.68]
[1763554537093,4.00188121,139.0,138.96,2.38]
[1763554537276,3.32188121,138.99,138.96,2.38]
[1763554537971,4.00188121,139.0,138.96,2.38]
[1763554538178,4.00188121,139.0,138.97,0.68]
[1763554538567,0.68,139.0,138.97,0.68]
[1763554538767,3.32188121,139.01,138.97,0.68]
[1763554538768,4.00188121,139.01,138.97,0.68]
[1763554541991,3.32188121,139.01,138.97,0.68]
[1763554542296,4.00188121,139.01,138.97,0.68]
[1763554542700,3.32188121,139.01,138.97,4.00188121]
[1763554543103,3.32188121,139.01,138.98,0.68]
[1763554543306,4.00188121,139.01,138.96,1.7]
[1763554543489,4.00188121,139.01,138.98,0.68]
[1763554545413,0.68,139.0,138.96,2.38]
[1763554545707,0.68,139.0,138.97,0.68]
[1763554546579,3.32188121,139.01,138.97,0.68]
[1763554546775,4.00188121,139.01,138.97,0.68]
[1763554547177,0.68,139.0,138.97,0.68]
[1763554547817,3.32188121,138.99,138.94,4.00188121]
[1763554547974,3.32188121,138.97,138.92,18.80096]
[1763554548176,4.00188121,138.96,138.93,0.68]
[1763554548478,3.32188121,138.97,138.93,0.68]
[1763554548701,0.68,139.0,138.93,4.00188121]
[1763554549014,2.12674636,138.98,138.93,2.80674636]
[1763554549177,2.12674636,138.99,138.94,2.80674636]
[1763554549375,2.12674636,138.98,138.94,2.80674636]
[1763554549592,2.12674636,138.98,138.95,0.65]
[1763554549789,2.79674636,138.98,138.95,0.65]
[1763554550179,2.79674636,138.98,138.94,2.12674636]
[1763554550180,2.79674636,138.98,138.94,0.65]
[1763554551089,2.79674636,138.97,138.92,20.24770636]
[1763554551291,0.67,138.97,138.93,0.65]
[1763554551497,2.79674636,138.97,138.93,0.65]
[1763554553011,2.12674636,138.98,138.93,2.77674636]
[1763554553303,2.12674636,138.98,138.94,2.12674636]
[1763554553604,2.12674636,138.98,138.95,0.65]
[1763554554201,2.37,139.01,138.95,2.77674636]
[1763554554404,2.12674636,138.99,138.95,2.77674636]
[1763554554592,2.12674636,138.99,138.95,0.65]
[1763554554793,2.79674636,138.99,138.95,0.65]
[1763554555297,9.78882769,139.02,138.95,2.77674636]
[1763554555298,18.12096,139.01,138.95,2.77674636]
[1763554555499,2.12674636,139.0,138.96,0.65]
[1763554555874,0.67,139.0,138.96,2.77674636]
[1763554556079,2.79674636,138.99,138.95,0.65]
[1763554556603,2.12674636,138.99,138.95,2.77674636]
[1763554556988,2.79674636,139.0,138.96,2.77674636]
[1763554557204,2.79674636,139.0,138.96,0.65]
[1763554560187,0.67,138.99,138.96,0.65]